bitfinex/quotes_BTCUSD_20251001
["timestamp","ask_amount","ask_price","bid_price","bid_amount"]
[1759307657721,0.06725136,115220.0,115210.0,8.8868042]
[1759307657926,0.06725136,115220.0,115210.0,9.2296742]
[1759307658108,0.06725136,115220.0,115210.0,9.2266842]
[1759307658307,0.06930136,115220.0,115210.0,9.3168842]
[1759307658543,0.06725136,115220.0,115210.0,9.3168842]
[1759307658783,0.06725136,115220.0,115210.0,9.27075604]
[1759307659192,0.05103868,115220.0,115210.0,0.54151604]
[1759307659424,0.05103868,115220.0,115210.0,1.27075604]
[1759307659648,0.05308868,115220.0,115210.0,0.54151604]
[1759307659874,0.05308868,115220.0,115210.0,1.27055604]
[1759307660108,0.14247415,115220.0,115210.0,0.54151604]
[1759307660343,0.33532708,115220.0,115210.0,0.53935604]
[1759307660585,0.15868611,115220.0,115210.0,1.22611581]
[1759307660853,0.15858611,115220.0,115210.0,0.86499581]
[1759307661072,0.06725064,115220.0,115210.0,9.31961581]
[1759307661289,0.06725064,115220.0,115210.0,9.27347604]
[1759307661923,0.06725064,115220.0,115210.0,9.33502963]
[1759307663503,0.06725064,115220.0,115210.0,9.33486963]
[1759307663713,0.06725064,115220.0,115210.0,8.60618963]
[1759307663925,0.06725064,115220.0,115210.0,1.33136963]
[1759307664142,0.05103868,115220.0,115210.0,1.33458963]
[1759307665225,0.05604868,115220.0,115210.0,1.32890963]
[1759307665435,0.05298868,115220.0,115210.0,1.33096963]
[1759307665855,0.05103868,115220.0,115210.0,1.33096963]
[1759307666313,0.06724734,115220.0,115210.0,1.33096963]
[1759307667174,0.06919734,115220.0,115210.0,0.60296963]
[1759307667416,0.33216378,115220.0,115210.0,0.60090963]
[1759307667627,0.16164281,115220.0,115210.0,1.26687604]
[1759307668505,0.16164281,115220.0,115210.0,0.81535604]
[1759307668722,0.16164281,115220.0,115210.0,0.53935604]
[1759307668943,0.16164281,115220.0,115210.0,1.26667604]
[1759307669153,0.16164281,115220.0,115210.0,1.26663604]
[1759307669800,0.33522378,115220.0,115210.0,0.53935604]
[1759307669982,0.33522378,115220.0,115210.0,1.26663604]
[1759307670659,0.16164281,115220.0,115210.0,1.26663604]
[1759307671726,0.16164281,115220.0,115210.0,1.32818963]
[1759307673403,0.15663281,115220.0,115210.0,1.33346963]
[1759307674266,0.14042415,115220.0,115210.0,1.33346963]
[1759307674472,0.14042415,115220.0,115210.0,1.33024963]
[1759307674724,0.14543415,115220.0,115210.0,1.32818963]
[1759307675156,0.1616762,115220.0,115210.0,1.32818963]
[1759307676147,0.14543415,115220.0,115210.0,1.32818963]
[1759307676345,0.14042415,115220.0,115210.0,1.33346963]
[1759307676608,0.05103868,115220.0,115210.0,9.27191604]
[1759307677260,0.05103868,115220.0,115210.0,8.54463604]
[1759307677493,0.05103868,115220.0,115210.0,9.30245701]
[1759307677918,0.05103868,115220.0,115210.0,9.30241701]
[1759307678355,0.05103868,115220.0,115210.0,9.24079604]
[1759307678572,0.05103868,115220.0,115210.0,8.63417341]
[1759307678836,0.05103868,115220.0,115210.0,9.40696814]
[1759307679506,0.02503868,115220.0,115210.0,9.31458267]
[1759307679904,0.02703868,115220.0,115210.0,9.33558267]
[1759307680166,0.02703868,115220.0,115210.0,9.33550267]
[1759307681282,0.02903868,115220.0,115210.0,9.35650267]
[1759307682441,0.02903868,115220.0,115210.0,8.63050267]
[1759307682667,0.02903868,115220.0,115210.0,9.35650267]
[1759307682858,0.02903868,115220.0,115210.0,9.35602267]
[1759307683525,0.02903868,115220.0,115210.0,8.90470267]
[1759307683742,0.02903868,115220.0,115210.0,8.63050267]
[1759307683931,0.02903868,115220.0,115210.0,9.35594267]
[1759307684144,0.02903868,115220.0,115210.0,8.63050267]
[1759307684580,0.02903868,115220.0,115210.0,9.35590267]
[1759307684793,0.02903868,115220.0,115210.0,8.63050267]
[1759307685010,0.02903868,115220.0,115210.0,9.27895604]
[1759307687473,0.02903868,115220.0,115210.0,9.35582267]
[1759307690887,0.02903868,115220.0,115210.0,9.35554267]
[1759307692884,0.02903868,115220.0,115210.0,9.35504267]
[1759307693115,0.02903868,115220.0,115210.0,9.47458004]
[1759307693343,0.02903868,115220.0,115210.0,8.63000267]
[1759307693570,0.02903868,115220.0,115210.0,9.37072166]
[1759307694498,0.02903868,115220.0,115210.0,9.35468267]
[1759307695375,0.02903868,115220.0,115210.0,9.56453394]
[1759307695593,0.02903868,115220.0,115210.0,9.65477394]
[1759307695992,0.07882097,115230.0,115220.0,0.51358097]
[1759307696197,0.07882097,115230.0,115220.0,8.53172887]
[1759307696406,0.07882097,115230.0,115220.0,9.28279887]
[1759307696836,0.07882097,115230.0,115220.0,9.28255887]
[1759307697500,0.07882097,115230.0,115220.0,9.28855887]
[1759307697701,0.07882097,115230.0,115220.0,9.28839887]
[1759307700475,0.07882097,115230.0,115220.0,9.28799887]
[1759307700689,0.07882097,115230.0,115220.0,8.62583735]
[1759307701115,0.08093097,115230.0,115220.0,1.34658735]
[1759307701326,0.08093097,115230.0,115220.0,1.34674735]
[1759307701776,0.08093097,115230.0,115220.0,0.62270735]
[1759307701980,0.08093097,115230.0,115220.0,0.62059735]
[1759307702183,0.08093097,115230.0,115220.0,1.34674735]
[1759307702406,0.08093097,115230.0,115220.0,1.34670735]
[1759307702634,0.08093097,115230.0,115220.0,1.33066945]
[1759307702851,0.07882097,115230.0,115220.0,9.33379945]
[1759307703072,0.07882097,115230.0,115220.0,8.54820097]
[1759307703293,0.07882097,115230.0,115220.0,9.27216097]
[1759307705114,0.07882097,115230.0,115220.0,8.54820097]
[1759307705554,0.08093097,115230.0,115220.0,1.26907097]
[1759307705812,0.08093097,115230.0,115220.0,0.54507097]
[1759307706020,0.08093097,115230.0,115220.0,1.34600498]
[1759307706240,0.08093097,115230.0,115220.0,0.62204498]
[1759307706461,0.08417097,115230.0,115220.0,0.61993498]
[1759307706693,0.08417097,115230.0,115220.0,1.34377498]
[1759307707387,0.08417097,115230.0,115220.0,0.54296097]
[1759307707842,0.08417097,115230.0,115220.0,1.26672097]
[1759307708073,0.08417097,115230.0,115220.0,1.34580498]
[1759307708319,0.08093097,115230.0,115220.0,1.34580498]
[1759307708583,0.08417097,115230.0,115220.0,1.34369498]
[1759307708827,0.08093097,115230.0,115220.0,1.34580498]
[1759307709699,0.07882097,115230.0,115220.0,1.34893498]
[1759307712350,0.08093097,115230.0,115220.0,1.34580498]
[1759307713619,0.07882097,115230.0,115220.0,1.34580498]
[1759307713830,0.07882097,115230.0,115220.0,1.34893498]
[1759307714247,0.07882097,115230.0,115220.0,9.37930908]
[1759307715724,0.02491,115240.0,115230.0,0.17356591]
[1759307715967,0.1,115260.0,115250.0,0.17353579]
[1759307716187,0.1,115260.0,115250.0,0.53700579]
[1759307716188,0.19195858,115260.0,115250.0,0.53700579]
[1759307716409,0.19195858,115260.0,115250.0,0.56038579]
[1759307716621,0.19195858,115260.0,115250.0,0.93075989]
[1759307716841,0.19071178,115260.0,115250.0,0.93075989]
[1759307717108,0.18860178,115260.0,115250.0,0.93075989]
[1759307717297,0.18860178,115260.0,115250.0,0.99555417]
[1759307717522,0.09921631,115260.0,115250.0,0.99555417]
[1759307717763,0.12121631,115260.0,115250.0,0.99655417]
[1759307718180,0.09921631,115260.0,115250.0,0.99555417]
[1759307718419,0.09921631,115260.0,115250.0,1.37558222]
[1759307719055,0.09921631,115260.0,115250.0,9.37558222]
[1759307719921,0.09921631,115260.0,115250.0,8.65342222]
[1759307720142,0.02491,115270.0,115260.0,0.54389483]
[1759307720360,0.1,115280.0,115270.0,0.51350568]
[1759307720573,0.1001389,115280.0,115270.0,8.51880568]
[1759307720792,0.1001389,115280.0,115270.0,9.32562569]
[1759307720978,0.1001389,115280.0,115270.0,9.23550569]
[1759307721248,0.1001389,115280.0,115270.0,8.54217568]
[1759307721462,0.1001389,115280.0,115270.0,9.32574569]
[1759307721672,0.1001389,115280.0,115270.0,9.32578569]
[1759307722298,0.1001389,115280.0,115270.0,9.27533568]
[1759307722511,0.1001389,115280.0,115270.0,9.28633568]
[1759307722721,0.1001389,115280.0,115270.0,8.56417568]
[1759307722905,0.1001389,115280.0,115270.0,9.28633568]
[1759307723107,0.1001389,115280.0,115270.0,8.56417568]
[1759307723311,0.1001389,115280.0,115270.0,9.28621568]
[1759307723730,0.1001389,115280.0,115270.0,8.56417568]
[1759307723970,0.1001389,115280.0,115270.0,9.28613568]
[1759307724151,0.1001389,115280.0,115270.0,8.56417568]
[1759307724359,0.1021489,115280.0,115270.0,8.92513568]
[1759307724591,0.1001389,115280.0,115270.0,9.28597568]
[1759307725049,0.1001389,115280.0,115270.0,8.56417568]
[1759307725250,0.1053189,115280.0,115270.0,1.26081568]
[1759307725452,0.1021489,115280.0,115270.0,0.53901568]
[1759307725665,0.1021489,115280.0,115270.0,1.26893568]
[1759307725867,0.1001389,115280.0,115270.0,1.26893568]
[1759307726094,0.1001389,115280.0,115270.0,1.27209568]
[1759307726303,0.1001389,115280.0,115270.0,0.55017568]
[1759307726507,0.1021489,115280.0,115270.0,1.26687568]
[1759307726710,0.1021489,115280.0,115270.0,1.26901568]
[1759307727085,0.1021489,115280.0,115270.0,0.55501568]
[1759307727289,0.1021489,115280.0,115270.0,1.27689568]
[1759307727503,0.368195,115280.0,115270.0,1.00399568]
[1759307727708,0.19470437,115280.0,115270.0,1.27467568]
[1759307727868,0.19470437,115280.0,115270.0,1.18443568]
[1759307728070,0.368195,115280.0,115270.0,0.49049]
[1759307728273,0.368195,115280.0,115270.0,0.21287568]
[1759307728471,0.368195,115280.0,115270.0,0.03937]
[1759307728679,0.368195,115280.0,115270.0,0.40021]
[1759307728881,0.368195,115280.0,115270.0,0.55771568]
[1759307729352,0.368195,115280.0,115270.0,0.38921]
[1759307729638,0.368195,115280.0,115270.0,0.56271568]
[1759307729850,0.368195,115280.0,115270.0,0.38921]
[1759307730060,0.368195,115280.0,115270.0,0.55771568]
[1759307730273,0.368195,115280.0,115270.0,0.38421]
[1759307730488,0.368195,115280.0,115270.0,0.38921]
[1759307730704,0.368195,115280.0,115270.0,0.02837]
[1759307730925,0.368195,115280.0,115270.0,0.38921]
[1759307731303,0.368195,115280.0,115270.0,0.02837]
[1759307731517,0.368195,115280.0,115270.0,0.38889]
[1759307731941,0.368195,115280.0,115270.0,0.38885]
[1759307732574,0.368195,115280.0,115270.0,0.02337]
[1759307732997,0.393195,115280.0,115270.0,0.38473]
[1759307733208,0.368195,115280.0,115270.0,0.02337]
[1759307733420,0.368195,115280.0,115270.0,0.38357]
[1759307733630,0.393195,115280.0,115270.0,0.38457]
[1759307734049,0.393195,115280.0,115270.0,0.02437]
[1759307734050,0.4233469,115280.0,115270.0,0.02437]
[1759307734234,0.3983469,115280.0,115270.0,0.02337]
[1759307734463,0.41766681,115280.0,115270.0,0.02337]
[1759307734673,0.415195,115280.0,115270.0,0.10073]
[1759307735104,0.462195,115280.0,115270.0,0.10373]
[1759307735353,0.368195,115280.0,115270.0,0.02337]
[1759307735543,0.368195,115280.0,115270.0,0.29341]
[1759307735759,0.415195,115280.0,115270.0,0.38665]
[1759307736429,0.4453469,115280.0,115270.0,0.29633]
[1759307736647,0.3983469,115280.0,115270.0,0.29333]
[1759307737055,0.368195,115280.0,115270.0,0.29333]
[1759307737294,0.415195,115280.0,115270.0,0.29633]
[1759307738911,0.415195,115280.0,115270.0,0.29621]
[1759307739086,0.415195,115280.0,115270.0,0.38645]
[1759307740334,0.415195,115280.0,115270.0,0.02637]
[1759307740497,0.415195,115280.0,115270.0,0.38645]
[1759307742092,0.415195,115280.0,115270.0,0.29617]
[1759307742388,0.415195,115280.0,115270.0,0.38641]
[1759307742637,0.23853437,115280.0,115270.0,0.38641]
[1759307742841,0.415195,115280.0,115270.0,0.38641]
[1759307743408,0.415195,115280.0,115270.0,0.02637]
[1759307743624,0.415195,115280.0,115270.0,0.38697]
[1759307743831,0.415195,115280.0,115270.0,0.02637]
[1759307744031,0.415195,115280.0,115270.0,0.38701]
[1759307745187,0.17351954,115270.0,115250.0,0.54317202]
[1759307745415,0.08938547,115260.0,115250.0,0.54317202]
[1759307745610,0.08938547,115260.0,115250.0,0.63871202]
[1759307745816,0.11259547,115260.0,115250.0,0.18751202]
[1759307746027,0.11259547,115260.0,115250.0,0.63871202]
[1759307746028,0.02321,115260.0,115250.0,0.63871202]
[1759307746237,0.1001389,115280.0,115270.0,0.17350568]
[1759307746470,0.1001389,115280.0,115270.0,8.19085624]
[1759307746682,1e-08,115280.0,115270.0,8.23232758]
[1759307746916,1e-08,115280.0,115270.0,8.50320758]
[1759307747132,0.0002,115290.0,115280.0,0.17349063]
[1759307747329,0.0002,115290.0,115280.0,8.51665063]
[1759307747534,0.0002,115290.0,115280.0,8.54216063]
[1759307748415,0.0002,115290.0,115280.0,8.60345207]
[1759307748620,0.0002,115290.0,115280.0,8.55016063]
[1759307748836,0.12321,115300.0,115290.0,0.17347558]
[1759307749062,0.09844006,115300.0,115290.0,8.17877558]
[1759307749272,0.097915,115300.0,115290.0,8.20214558]
[1759307749491,0.09745935,115300.0,115290.0,8.20214558]
[1759307749698,0.09946935,115300.0,115290.0,8.84112558]
[1759307749903,0.09745935,115300.0,115290.0,8.93662558]
[1759307750345,0.09745935,115300.0,115290.0,8.48550558]
[1759307750558,0.09745935,115300.0,115290.0,8.20195558]
[1759307750799,0.09745935,115300.0,115290.0,8.93506558]
[1759307751028,0.09745935,115300.0,115290.0,8.94004558]
[1759307751240,0.09956935,115300.0,115290.0,0.20896558]
[1759307751474,0.09956935,115300.0,115290.0,0.20684558]
[1759307751680,0.09956935,115300.0,115290.0,0.94768261]
[1759307751901,0.09956935,115300.0,115290.0,1.28980261]
[1759307752100,0.18895482,115300.0,115290.0,0.39656703]
[1759307752306,0.19191482,115300.0,115290.0,0.94816261]
[1759307752506,0.19191482,115300.0,115290.0,0.03352703]
[1759307752708,0.36537535,115300.0,115290.0,0.32408703]
[1759307752927,0.36537535,115300.0,115290.0,0.41448703]
[1759307753130,0.36537535,115300.0,115290.0,0.41480703]
[1759307753339,0.36537535,115300.0,115290.0,0.41508703]
[1759307753547,0.39552725,115300.0,115290.0,0.41508703]
[1759307753751,0.39552725,115300.0,115290.0,0.40508703]
[1759307754163,0.39552725,115300.0,115290.0,0.41008703]
[1759307754362,0.39552725,115300.0,115290.0,0.02852703]
[1759307754789,0.44252725,115300.0,115290.0,0.31796703]
[1759307755012,0.44252725,115300.0,115290.0,0.40816703]
[1759307755494,0.41237535,115300.0,115290.0,0.40816703]
[1759307756889,0.23891482,115300.0,115290.0,0.40516703]
[1759307757135,0.19191482,115300.0,115290.0,0.57864261]
[1759307757358,0.39437535,115300.0,115290.0,0.40616703]
[1759307757582,0.22091482,115300.0,115290.0,0.57964261]
[1759307757835,0.26495482,115300.0,115290.0,0.41128703]
[1759307758042,0.43841535,115300.0,115290.0,0.40916703]
[1759307758247,0.36537535,115300.0,115290.0,0.02352703]
[1759307758486,0.39437535,115300.0,115290.0,0.02452703]
[1759307758703,0.39437535,115300.0,115290.0,0.40580703]
[1759307758893,0.42452725,115300.0,115290.0,0.11472703]
[1759307759114,0.42452725,115300.0,115290.0,0.02452703]
[1759307759326,0.39437535,115300.0,115290.0,0.40632703]
[1759307759543,0.39437535,115300.0,115290.0,0.02452703]
[1759307759745,0.44952725,115300.0,115290.0,0.31608703]
[1759307759959,0.44952725,115300.0,115290.0,0.02452703]
[1759307760376,0.42052725,115300.0,115290.0,0.31508703]
[1759307760581,0.42052725,115300.0,115290.0,0.02352703]
[1759307760791,0.86052725,115300.0,115290.0,0.02352703]
[1759307761030,0.90752725,115300.0,115290.0,0.02652703]
[1759307761264,0.87852725,115300.0,115290.0,0.02552703]
[1759307761725,0.88661428,115300.0,115290.0,0.02552703]
[1759307761956,0.86861428,115300.0,115290.0,0.02352703]
[1759307762436,0.96161428,115300.0,115290.0,0.03052703]
[1759307762678,0.96161432,115300.0,115290.0,0.03052703]
[1759307762911,0.93146242,115300.0,115290.0,0.03052703]
[1759307763153,0.96161432,115300.0,115290.0,0.03052703]
[1759307763840,0.86161432,115300.0,115290.0,0.03052703]
[1759307764272,0.48852725,115300.0,115290.0,0.03052703]
[1759307768106,0.48852725,115300.0,115290.0,0.12076703]
[1759307769202,0.41852725,115300.0,115290.0,0.12076703]
[1759307769451,0.38837535,115300.0,115290.0,0.29424261]
[1759307769661,0.38837535,115300.0,115290.0,0.12076703]
[1759307770528,0.38837535,115300.0,115290.0,0.29424261]
[1759307770747,0.38837535,115300.0,115290.0,0.12076703]
[1759307772700,0.38837535,115300.0,115290.0,0.29424261]
[1759307773136,0.38837535,115300.0,115290.0,0.12076703]
[1759307773399,0.38837535,115300.0,115290.0,0.32076703]
[1759307773604,0.38837535,115300.0,115290.0,0.32088703]
[1759307773831,0.20984482,115300.0,115290.0,0.58965261]
[1759307774278,0.20984482,115300.0,115290.0,0.92965261]
[1759307774947,0.20984482,115300.0,115290.0,1.29513261]
[1759307775170,0.11684482,115300.0,115290.0,0.54209261]
[1759307775602,0.11895482,115300.0,115290.0,1.28468261]
[1759307775822,0.11895482,115300.0,115290.0,0.36564703]
[1759307775823,0.29241535,115300.0,115290.0,0.36564703]
[1759307776042,0.29537535,115300.0,115290.0,0.11372703]
[1759307776255,0.29537535,115300.0,115290.0,0.40828703]
[1759307776685,0.29537535,115300.0,115290.0,0.31792703]
[1759307776902,0.29537535,115300.0,115290.0,0.31788703]
[1759307777122,0.29537535,115300.0,115290.0,0.40808703]
[1759307777607,0.29537535,115300.0,115290.0,0.02352703]
[1759307777865,0.29537535,115300.0,115290.0,0.40800703]
[1759307778729,0.29241535,115300.0,115290.0,0.40800703]
[1759307778943,0.29537535,115300.0,115290.0,0.40800703]
[1759307779407,0.11895482,115300.0,115290.0,0.4561979]
[1759307779645,0.29238535,115300.0,115290.0,0.62967348]
[1759307779911,0.11892482,115300.0,115290.0,0.96967348]
[1759307780170,0.29550535,115300.0,115290.0,0.42481847]
[1759307780387,0.29550535,115300.0,115290.0,0.80957847]
[1759307780618,0.11684482,115300.0,115290.0,0.60329405]
[1759307780844,0.11684482,115300.0,115290.0,0.98801405]
[1759307781069,0.29030535,115300.0,115290.0,0.42981847]
[1759307781294,0.29226535,115300.0,115290.0,0.81209847]
[1759307781530,0.29226535,115300.0,115290.0,0.98557405]
[1759307781739,0.29226535,115300.0,115290.0,0.42680847]
[1759307781952,0.29226535,115300.0,115290.0,0.81408847]
[1759307782171,0.29226535,115300.0,115290.0,0.42680847]
[1759307782439,0.29530535,115300.0,115290.0,0.42481847]
[1759307782660,0.29530535,115300.0,115290.0,0.75136703]
[1759307783105,0.29530535,115300.0,115290.0,0.36352703]
[1759307783320,0.29226535,115300.0,115290.0,0.53899261]
[1759307783539,0.29530535,115300.0,115290.0,0.92488261]
[1759307783750,0.29530535,115300.0,115290.0,0.75140703]
[1759307783966,0.29530535,115300.0,115290.0,0.75224703]
[1759307784467,0.29530535,115300.0,115290.0,0.02352703]
[1759307784677,0.29530535,115300.0,115290.0,0.41208703]
[1759307784890,0.29226535,115300.0,115290.0,0.3699366]
[1759307785123,0.29226535,115300.0,115290.0,0.4601366]
[1759307785567,0.29530535,115300.0,115290.0,0.4581466]
[1759307785783,0.29530535,115300.0,115290.0,0.0696266]
[1759307786035,0.29530535,115300.0,115290.0,0.4582266]
[1759307787576,0.29226535,115300.0,115290.0,0.63369218]
[1759307787790,0.29226535,115300.0,115290.0,0.4602166]
[1759307788018,0.29530535,115300.0,115290.0,0.4582266]
[1759307788234,0.29530535,115300.0,115290.0,0.0696266]
[1759307788706,0.29530535,115300.0,115290.0,0.4575866]
[1759307789146,0.29530535,115300.0,115290.0,0.4573866]
[1759307789393,0.29530535,115300.0,115290.0,0.0696266]
[1759307789614,0.29530535,115300.0,115290.0,0.4573866]
[1759307790062,0.29530535,115300.0,115290.0,0.63586218]
[1759307790063,0.11684482,115300.0,115290.0,0.63586218]
[1759307790289,0.11880482,115300.0,115290.0,0.98804405]
[1759307790510,0.12184482,115300.0,115290.0,0.98605405]
[1759307790735,0.11880482,115300.0,115290.0,0.98605405]
[1759307790946,0.12184482,115300.0,115290.0,0.59829405]
[1759307791157,0.14699672,115300.0,115290.0,0.99785405]
[1759307791582,0.14699672,115300.0,115290.0,0.99777405]
[1759307791805,0.14895672,115300.0,115290.0,0.99476405]
[1759307792027,0.32341725,115300.0,115290.0,0.83828847]
[1759307792243,0.32341725,115300.0,115290.0,0.39752703]
[1759307792244,0.32745725,115300.0,115290.0,0.39752703]
[1759307792477,0.32441725,115300.0,115290.0,0.79208703]
[1759307792882,0.32745725,115300.0,115290.0,0.05752703]
[1759307793124,0.14899672,115300.0,115290.0,0.63048261]
[1759307793332,0.15095672,115300.0,115290.0,0.62747261]
[1759307794001,0.15095672,115300.0,115290.0,0.68876405]
[1759307794211,0.11884482,115300.0,115290.0,0.68876405]
[1759307794439,0.14899672,115300.0,115290.0,1.03177405]
[1759307796404,0.15095672,115300.0,115290.0,0.85528847]
[1759307796622,0.32441725,115300.0,115290.0,0.85528847]
[1759307796836,0.32745725,115300.0,115290.0,1.02677405]
[1759307797073,0.32745725,115300.0,115290.0,0.11881847]
[1759307797275,0.32745725,115300.0,115290.0,0.51553847]
[1759307797550,0.32745725,115300.0,115290.0,0.36404703]
[1759307797793,0.32745725,115300.0,115290.0,0.45424703]
[1759307798462,0.32545725,115300.0,115290.0,0.02352703]
[1759307798712,0.32545725,115300.0,115290.0,0.4661887]
[1759307798938,0.33357737,115300.0,115290.0,0.42000703]
[1759307799372,0.29530535,115300.0,115290.0,0.42000703]
[1759307799605,0.29530535,115300.0,115290.0,0.4661887]
[1759307799606,0.32545725,115300.0,115290.0,0.4661887]
[1759307801180,0.34145725,115300.0,115290.0,0.0707087]
[1759307801402,0.35745725,115300.0,115290.0,0.42156703]
[1759307801678,0.35745725,115300.0,115290.0,0.64122428]
[1759307801889,0.35441725,115300.0,115290.0,0.64321428]
[1759307802530,0.35745725,115300.0,115290.0,0.08681847]
[1759307802749,0.35441725,115300.0,115290.0,0.48389847]
[1759307802962,0.35745725,115300.0,115290.0,0.02552703]
[1759307803179,0.35745725,115300.0,115290.0,0.46882705]
[1759307804274,0.35441725,115300.0,115290.0,0.42463703]
[1759307804493,0.35745725,115300.0,115290.0,0.02552703]
[1759307804730,0.35745725,115300.0,115290.0,0.42192703]
[1759307805386,0.35745725,115300.0,115290.0,0.48321847]
[1759307805818,0.35745725,115300.0,115290.0,0.02552703]
[1759307806027,0.35745725,115300.0,115290.0,0.42148703]
[1759307806240,0.35745725,115300.0,115290.0,0.02552703]
[1759307806456,0.35745725,115300.0,115290.0,0.42148703]
[1759307807342,0.35745725,115300.0,115290.0,0.02552703]
[1759307807557,0.35745725,115300.0,115290.0,0.16191643]
[1759307807781,0.35745725,115300.0,115290.0,0.46719643]
[1759307808054,0.35745725,115300.0,115290.0,0.07171643]
[1759307808268,0.35745725,115300.0,115290.0,0.46711643]
[1759307809551,0.35745725,115300.0,115290.0,0.07171643]
[1759307809765,0.35745725,115300.0,115290.0,0.37679643]
[1759307810400,0.35745725,115300.0,115290.0,0.33060703]
[1759307810614,0.36557652,115300.0,115290.0,0.33060703]
[1759307811490,0.36557652,115300.0,115290.0,0.02552703]
[1759307811719,0.36557652,115300.0,115290.0,0.42204703]
[1759307812573,0.36557652,115300.0,115290.0,0.42208703]
[1759307812992,0.36557652,115300.0,115290.0,0.02552703]
[1759307813255,0.36557652,115300.0,115290.0,0.42180703]
[1759307814458,0.36057652,115300.0,115290.0,0.42390703]
[1759307814677,0.36057652,115300.0,115290.0,0.42180703]
[1759307814678,0.35776725,115300.0,115290.0,0.42180703]
[1759307814889,0.35776725,115300.0,115290.0,0.46799643]
[1759307816388,0.35776725,115300.0,115290.0,0.42180703]
[1759307816815,0.35776725,115300.0,115290.0,0.33352703]
[1759307817075,0.35776725,115300.0,115290.0,0.42372703]
[1759307817286,0.35776725,115300.0,115290.0,0.02552703]
[1759307817493,0.35776725,115300.0,115290.0,0.42372703]
[1759307817709,0.35245725,115300.0,115290.0,0.42582703]
[1759307817929,0.35776725,115300.0,115290.0,0.46991643]
[1759307818821,0.35776725,115300.0,115290.0,0.02552703]
[1759307819041,0.35776725,115300.0,115290.0,0.42520703]
[1759307820561,0.35776725,115300.0,115290.0,0.47139643]
[1759307822131,0.35776725,115300.0,115290.0,0.47007643]
[1759307822349,0.35776725,115300.0,115290.0,0.07171643]
[1759307822562,0.35776725,115300.0,115290.0,0.42348703]
[1759307822777,0.35776725,115300.0,115290.0,0.02552703]
[1759307823216,0.39088506,115300.0,115290.0,0.02552703]
[1759307823423,0.39088506,115300.0,115290.0,0.28356703]
[1759307823668,0.35888506,115300.0,115290.0,0.28156703]
[1759307824322,0.39088506,115300.0,115290.0,0.28556703]
[1759307824760,0.36588506,115300.0,115290.0,0.28556703]
[1759307825184,0.36588506,115300.0,115290.0,0.02752703]
[1759307825397,0.36588506,115300.0,115290.0,0.42468703]
[1759307825825,0.36588506,115300.0,115290.0,0.02752703]
[1759307826035,0.39088506,115300.0,115290.0,0.21252703]
[1759307828052,0.36073316,115300.0,115290.0,0.21252703]
[1759307828272,0.39088506,115300.0,115290.0,0.21252703]
[1759307828494,0.37455808,115300.0,115260.0,0.19730957]
[1759307828745,0.17349063,115280.0,115270.0,0.2373194]
[1759307828964,0.2649961,115280.0,115270.0,0.15971762]
[1759307829177,0.2923161,115280.0,115270.0,0.09024]
[1759307829747,0.2923161,115280.0,115270.0,0.39664]
[1759307830340,0.2963161,115280.0,115270.0,0.42664]
[1759307830714,0.3003161,115280.0,115270.0,0.48163]
[1759307831860,0.3003161,115280.0,115270.0,0.48373]
[1759307831861,0.327278,115280.0,115270.0,0.48373]
[1759307832768,0.327278,115280.0,115270.0,0.65723568]
[1759307832995,0.770178,115280.0,115270.0,0.65723568]
[1759307834325,0.15166737,115280.0,115270.0,0.66045568]
[1759307834522,0.325158,115280.0,115270.0,0.66045568]
[1759307835879,0.327278,115280.0,115270.0,0.84257]
[1759307836090,0.327278,115280.0,115270.0,1.01607568]
[1759307836301,0.325158,115280.0,115270.0,1.01929568]
[1759307836709,0.325158,115280.0,115270.0,0.09031]
[1759307836917,0.325158,115280.0,115270.0,0.84205]
[1759307837130,0.327278,115280.0,115270.0,0.84205]
[1759307837341,0.327278,115280.0,115270.0,0.84197]
[1759307837552,0.327278,115280.0,115270.0,1.01547568]
[1759307837766,0.325158,115280.0,115270.0,1.01869568]
[1759307838620,0.325158,115280.0,115270.0,0.32539012]
[1759307838836,0.325158,115280.0,115270.0,1.08023012]
[1759307839054,0.15166737,115280.0,115270.0,1.08023012]
[1759307839286,0.03213,115280.0,115270.0,1.76513227]
[1759307839493,0.03213,115280.0,115270.0,1.70355783]
[1759307839707,0.03213,115280.0,115270.0,1.26797568]
[1759307839985,0.03213,115280.0,115270.0,1.35821568]
[1759307840207,0.03213,115280.0,115270.0,1.4197805]
[1759307841060,0.03213,115280.0,115270.0,1.35821568]
[1759307841920,0.03213,115280.0,115270.0,0.98330969]
[1759307842138,0.03213,115280.0,115270.0,1.09442969]
[1759307842349,0.03213,115280.0,115270.0,1.43913835]
[1759307842565,0.03213,115280.0,115270.0,1.09462969]
[1759307842995,0.03213,115280.0,115270.0,0.34078969]
[1759307843416,0.03213,115280.0,115270.0,1.01717568]
[1759307845020,0.03213,115280.0,115270.0,0.26381568]
[1759307845228,0.03213,115280.0,115270.0,1.09414969]
[1759307845436,0.03213,115280.0,115270.0,0.34078969]
[1759307845644,0.03213,115280.0,115270.0,1.09350969]
[1759307846259,0.03213,115280.0,115270.0,0.34078969]
[1759307846496,0.03213,115280.0,115270.0,1.09338969]
[1759307847133,0.03213,115280.0,115270.0,9.43338969]
[1759307847342,0.03213,115280.0,115270.0,8.68078969]
[1759307847587,0.03213,115280.0,115270.0,9.43274969]
[1759307847792,0.03213,115280.0,115270.0,9.77745835]
[1759307849687,0.325158,115280.0,115270.0,8.16728401]
[1759307849901,0.327218,115280.0,115270.0,0.48846137]
[1759307850137,0.03213,115280.0,115270.0,1.39984571]
[1759307850348,0.03213,115280.0,115270.0,1.41531847]
[1759307850580,0.03213,115280.0,115270.0,0.50687401]
[1759307850783,0.15166737,115280.0,115270.0,1.43141969]
[1759307850987,0.15166737,115280.0,115270.0,1.35444568]
[1759307851244,0.15166737,115280.0,115270.0,1.43141969]
[1759307851452,0.15166737,115280.0,115270.0,0.98009969]
[1759307851630,0.15166737,115280.0,115270.0,1.43121969]
[1759307851776,0.15166737,115280.0,115270.0,1.50455369]
[1759307853684,0.03213,115280.0,115270.0,1.50455369]
[1759307853938,0.03213,115280.0,115270.0,9.50455369]
[1759307856221,0.03213,115280.0,115270.0,9.84925247]
[1759307856849,0.03213,115280.0,115270.0,9.75681247]
[1759307857065,0.03213,115280.0,115270.0,9.84701247]
[1759307858205,0.03213,115280.0,115270.0,9.09841247]
[1759307858409,0.03213,115280.0,115270.0,9.84701247]
[1759307859136,0.03213,115280.0,115270.0,9.50231369]
[1759307859342,0.03213,115280.0,115270.0,9.50163369]
[1759307861114,0.15166737,115280.0,115270.0,8.87604801]
[1759307861334,0.15372737,115280.0,115270.0,0.75078369]
[1759307861577,0.15166737,115280.0,115270.0,1.50063369]
[1759307861803,0.15166737,115280.0,115270.0,1.42365968]
[1759307862462,0.15166737,115280.0,115270.0,1.50063369]
[1759307863657,0.15166737,115280.0,115270.0,0.75371369]
[1759307863871,0.15166737,115280.0,115270.0,1.49999369]